Workbook

Sheet паспорт
A1: ПАТ "УКРТРАНСГАЗ" | G1: ПАСПОРТ ФІЗИКО-ХІМІЧНИХ ПОКАЗНИКІВ ПРИРОДНОГО ГАЗУ № 165
A2: Філія "УМГ "КИЇВТРАНСГАЗ" | G2: переданого Чернігівським ЛВУМГ та прийнятого ПАТ "Чернігівгаз", ПАТ "Сумигаз", ТОВ "ГАЗОВІ АВТОМОБІЛЬНІ ЗАПРАВКИ"
A3: Чернігівське ЛВУМГ | G3: Маршрут № 165
A4: Вимірювальна хіміко-аналітична лабораторія
A5: Свідоцтво № 74/2014 чинно до 01.07.2019 р. | K5: по газопроводу "ДАШАВА-КИЇВ-БРЯНСЬК-МОСКВА" | V5: за період з | X5: 2017-05-01 | Z5: по | AA5: 2017-05-31
A7: Число місяця | B7: Компонентний склад, % мол. | N7: Фізико-хімічні показники газу обчислені на основі компонентного складу, 101,325 кПа | X7: Температура точки роси за вологою (Р = 3.92 МПа), ºС | Y7: Температура точки роси за вуглеводнями, ºС | Z7: Вміст сірководню, г/м3 | AA7: Вміст меркаптанової сірки, г/м3 | AB7: Вміст механічних домішок, г/м3
N8: Густина абсолютна, кг/м3,при 20 ºС, | O8: Температура вимірювання/згоряння при 20/25°С
B9: метан, С1 | C9: етан, С2 | D9: пропан, С3 | E9: ізо-бутан, і-С4 | F9: н-бутан, н-С4 | G9: нео-пентан, нео-С5 | H9: ізо-пентан, і-С5 | I9: н-пентан, н-С5 | J9: гексани та вищі, С6+ | K9: кисень, О2 | L9: азот, N2 | M9: діоксид вуглецю, CО2 | O9: Теплота згоряння нижча | R9: Теплота згоряння вища | U9: Число Воббе вище
O10: ккал/м3 | P10: МДж/м3 | Q10: кВт⋅год/м3 | R10: ккал/м3 | S10: МДж/м3 | T10: кВт⋅год/м3 | U10: ккал/м3 | V10: МДж/м3 | W10: кВт⋅год/м3
A11: 1 | O11: 8240 | P11: 34.5 | Q11: 9.58 | R11: 9121 | S11: 38.19 | T11: 10.61 | AC11: =SUM(B11:M11)+$K$42+$N$42 -> 0
A12: 2 | O12: 8240 | P12: 34.5 | Q12: 9.58 | R12: 9121 | S12: 38.19 | T12: 10.61 | AC12: 0
A13: 3 | O13: 8240 | P13: 34.5 | Q13: 9.58 | R13: 9121 | S13: 38.19 | T13: 10.61 | AC13: 0 | AD13: =IF(AC13=100,"ОК"," ") -> 
A14: 4 | B14: 89.1636 | C14: 5.2449 | D14: 1.1519 | E14: 0.1179 | F14: 0.2094 | G14: 0.0033 | H14: 0.053 | I14: 0.0381 | J14: 0.0518 | K14: 0.0063 | L14: 1.6887 | M14: 2.271 | N14: 0.757 | O14: 8239 | P14: 34.49 | Q14: 9.58 | R14: 9120 | S14: 38.19 | T14: 10.61 | U14: 11505 | V14: 48.17 | W14: 13.38 | X14: -9.8 | Y14: -9.4 | Z14: 0.0001 | AA14: 0.0004 | AB14: відс. | AC14: 99.9999 | AD14: =IF(AC14=100,"ОК"," ") -> 
A15: 5 | O15: 8239 | P15: 34.49 | Q15: 9.58 | R15: 9120 | S15: 38.19 | T15: 10.61 | AC15: 0
A16: 6 | O16: 8239 | P16: 34.49 | Q16: 9.58 | R16: 9120 | S16: 38.19 | T16: 10.61 | AC16: 0
A17: 7 | O17: 8239 | P17: 34.49 | Q17: 9.58 | R17: 9120 | S17: 38.19 | T17: 10.61 | AC17: 0
A18: 8 | O18: 8239 | P18: 34.49 | Q18: 9.58 | R18: 9120 | S18: 38.19 | T18: 10.61 | AC18: =SUM(B18:M18)+$K$42+$N$42 -> 0
A19: 9 | O19: 8239 | P19: 34.49 | Q19: 9.58 | R19: 9120 | S19: 38.19 | T19: 10.61 | AC19: 0
A20: 10 | O20: 8239 | P20: 34.49 | Q20: 9.58 | R20: 9120 | S20: 38.19 | T20: 10.61 | AC20: 0
A21: 11 | B21: 89.1574 | C21: 5.2282 | D21: 1.167 | E21: 0.1241 | F21: 0.2254 | G21: 0.0044 | H21: 0.0563 | I21: 0.0419 | J21: 0.0521 | K21: 0.0052 | L21: 1.6509 | M21: 2.287 | N21: 0.7576 | O21: 8248 | P21: 34.53 | Q21: 9.59 | R21: 9130 | S21: 38.23 | T21: 10.62 | U21: 11512 | V21: 48.2 | W21: 13.39 | X21: -9.8 | Y21: -10.2 | Z21: 0.0001 | AA21: 0.0004 | AB21: відс. | AC21: 99.9999
A22: 12 | O22: 8248 | P22: 34.53 | Q22: 9.59 | R22: 9130 | S22: 38.23 | T22: 10.62 | AC22: 0
A23: 13 | O23: 8248 | P23: 34.53 | Q23: 9.59 | R23: 9130 | S23: 38.23 | T23: 10.62 | AC23: 0
A24: 14 | O24: 8248 | P24: 34.53 | Q24: 9.59 | R24: 9130 | S24: 38.23 | T24: 10.62 | AC24: 0
A25: 15 | O25: 8248 | P25: 34.53 | Q25: 9.59 | R25: 9130 | S25: 38.23 | T25: 10.62 | AC25: 0
A26: 16 | O26: 8248 | P26: 34.53 | Q26: 9.59 | R26: 9130 | S26: 38.23 | T26: 10.62 | AC26: 0
A27: 17 | O27: 8248 | P27: 34.53 | Q27: 9.59 | R27: 9130 | S27: 38.23 | T27: 10.62 | AC27: 0
A28: 18 | B28: 89.5666 | C28: 4.9951 | D28: 1.1111 | E28: 0.1218 | F28: 0.2108 | G28: 0.0041 | H28: 0.0515 | I28: 0.0375 | J28: 0.0409 | K28: 0.0069 | L28: 1.674 | M28: 2.1797 | N28: 0.7536 | O28: 8224 | P28: 34.43 | Q28: 9.56 | R28: 9105 | S28: 38.12 | T28: 10.59 | U28: 11510 | V28: 48.19 | W28: 13.39 | X28: -9.6 | Y28: -10.2 | Z28: 0.0001 | AA28: 0.0004 | AB28: відс. | AC28: 100 | AD28: ОК
A29: 19 | O29: 8224 | P29: 34.43 | Q29: 9.56 | R29: 9105 | S29: 38.12 | T29: 10.59 | AC29: 0
A30: 20 | O30: 8224 | P30: 34.43 | Q30: 9.56 | R30: 9105 | S30: 38.12 | T30: 10.59 | AC30: 0 | AD30: =IF(AC30=100,"ОК"," ") -> 
A31: 21 | O31: 8224 | P31: 34.43 | Q31: 9.56 | R31: 9105 | S31: 38.12 | T31: 10.59 | AC31: 0
A32: 22 | O32: 8224 | P32: 34.43 | Q32: 9.56 | R32: 9105 | S32: 38.12 | T32: 10.59 | AC32: 0
A33: 23 | O33: 8224 | P33: 34.43 | Q33: 9.56 | R33: 9105 | S33: 38.12 | T33: 10.59 | AC33: 0 | AD33: =IF(AC33=100,"ОК"," ") -> 
A34: 24 | B34: 89.7121 | C34: 4.9354 | D34: 1.1 | E34: 0.1201 | F34: 0.2191 | G34: 0.0038 | H34: 0.0561 | I34: 0.042 | J34: 0.053 | K34: 0.003 | L34: 1.5987 | M34: 2.1566 | N34: 0.7532 | O34: 8234 | P34: 34.47 | Q34: 9.58 | R34: 9116 | S34: 38.17 | T34: 10.6 | U34: 11529 | V34: 48.27 | W34: 13.41 | X34: -8.8 | Y34: -9.8 | Z34: 0.0001 | AA34: 0.0004 | AB34: відс. | AC34: 99.9999
A35: 25 | O35: 8234 | P35: 34.47 | Q35: 9.58 | R35: 9116 | S35: 38.17 | T35: 10.6 | AC35: 0
A36: 26 | O36: 8234 | P36: 34.47 | Q36: 9.58 | R36: 9116 | S36: 38.17 | T36: 10.6 | AC36: 0
A37: 27 | O37: 8234 | P37: 34.47 | Q37: 9.58 | R37: 9116 | S37: 38.17 | T37: 10.6 | AC37: 0
A38: 28 | O38: 8234 | P38: 34.47 | Q38: 9.58 | R38: 9116 | S38: 38.17 | T38: 10.6 | AC38: 0
A39: 29 | O39: 8234 | P39: 34.47 | Q39: 9.58 | R39: 9116 | S39: 38.17 | T39: 10.6 | AC39: 0
A40: 30 | B40: 89.778 | C40: 4.927 | D40: 1.0933 | E40: 0.117 | F40: 0.2171 | G40: 0.0035 | H40: 0.0541 | I40: 0.0409 | J40: 0.0429 | K40: 0.005 | L40: 1.6294 | M40: 2.092 | N40: 0.752 | O40: 8230 | P40: 34.46 | Q40: 9.57 | R40: 9112 | S40: 38.15 | T40: 10.6 | U40: 11531 | V40: 48.28 | W40: 13.41 | X40: -8.6 | Y40: -9.8 | Z40: 0.0001 | AA40: 0.0004 | AB40: відс. | AC40: 100.0002
A41: 31 | O41: 8230 | P41: 34.46 | Q41: 9.57 | R41: 9112 | S41: 38.15 | T41: 10.6 | AC41: 0
A42: Рівень одоризації відповідає чинним нормативним документам | O42: =SUMPRODUCT(O11:O41,' розрахунок'!V7:V37)/' розрахунок'!V38 -> 8237.17615 | P42: =SUMPRODUCT(P11:P41,' розрахунок'!V7:V37)/' розрахунок'!V38 -> 34.48459575 | Q42: =SUMPRODUCT(Q11:Q41,' розрахунок'!V7:V37)/' розрахунок'!V38 -> 9.578252435 | R42: =SUMPRODUCT(R11:R41,' розрахунок'!V7:V37)/' розрахунок'!V38 -> 9118.719694 | S42: =SUMPRODUCT(S11:S41,' розрахунок'!V7:V37)/' розрахунок'!V38 -> 38.18133793 | T42: =SUMPRODUCT(T11:T41,' розрахунок'!V7:V37)/' розрахунок'!V38 -> 10.60635997
H43: Середньозважене значення теплоти згоряння:
B46: Начальник управління Чернігівського ЛВУМГ Шутішин В.О. 01.06.2017 р.
C47: Підрозділу підприємства, якому підпорядкована лабораторія | O47: прізвище | R47: підпис | V47: дата
B48: Завідувач лабораторією Лапа І.О. 01.06.2017 р.
C49: Лабораторія, де здійснювалось вимірювання газу | O49: прізвище | R49: підпис | V49: дата
B50: Начальник служби газовимірювання та метрології Макаров О.В. 01.06.2017 р.
C51: Підрозділу, відповідального за облік газу за маршрутом | O51: прізвище | R51: підпис | V51: дата

Sheet розрахунок
A2: Додаток до Паспорту фізико-хімічних показників природного газу по маршруту № 165
A4: Число місяця | B4: Теплота згоряння вища, МДж/м3 | C4: Чернігівська область | T4: Сумська область | V4: Загальний обсяг газу, м3
C5: Обсяг газу переданого за добу, м3
C6: ГРС Н.Сіверський | D6: ГРС Корюківка | E6: ГРС Наумівка | F6: ГРС Сядрине | G6: ГРС Семенівка | H6: ГРС Костобобрів | I6: ГРС Олександрівка | J6: ГРС Хотіївка | K6: ГРС Жадове | L6: ГРС Іванівка (Семенівського району) | M6: ГРС Машеве | N6: ГРС Радомка | O6: ГРС Горбове | P6: ГРС Печенюги | Q6: ГРС Б. Вороб'ївська | R6: ГРС Забарівка | S6: ГРС Троїцьке | T6: ГРС № 1 м. Шостка | U6: АГНКС м. Шостка
A7: 1 | B7: 38.19 | C7: 4317 | D7: 5678 | E7: 506 | F7: 216 | G7: 2299 | H7: 57 | I7: 223 | J7: 187 | K7: 195 | L7: 81 | M7: 251 | N7: 570 | O7: 96 | P7: 112 | Q7: 106 | R7: 112 | S7: 19 | T7: 840 | U7: 2856 | V7: =SUM(C7:U7) -> 18721
A8: 2 | B8: 38.19 | C8: 5086 | D8: 6930 | E8: 659 | F8: 277 | G8: 3076 | H8: 145 | I8: 254 | J8: 236 | K8: 273 | L8: 134 | M8: 323 | N8: 787 | O8: 157 | P8: 171 | Q8: 117 | R8: 122 | S8: 23 | T8: 922 | U8: 3079 | V8: 22771
A9: 3 | B9: 38.19 | C9: 5402 | D9: 6246 | E9: 610 | F9: 248 | G9: 2674 | H9: 156 | I9: 250 | J9: 212 | K9: 235 | L9: 90 | M9: 287 | N9: 743 | O9: 148 | P9: 228 | Q9: 122 | R9: 150 | S9: 23 | T9: 1193 | U9: 4137 | V9: 23154
A10: 4 | B10: 38.19 | C10: 6412 | D10: 6288 | E10: 527 | F10: 233 | G10: 2592 | H10: 262 | I10: 261 | J10: 199 | K10: 237 | L10: 109 | M10: 259 | N10: 691 | O10: 122 | P10: 162 | Q10: 134 | R10: 101 | S10: 30 | T10: 1006 | U10: 4135 | V10: 23760
A11: 5 | B11: 38.19 | C11: 6888 | D11: 6128 | E11: 547 | F11: 233 | G11: 2520 | H11: 167 | I11: 237 | J11: 197 | K11: 233 | L11: 114 | M11: 308 | N11: 750 | O11: 163 | P11: 173 | Q11: 130 | R11: 118 | S11: 31 | T11: 1157 | U11: 4154 | V11: 24248
A12: 6 | B12: 38.19 | C12: 6575 | D12: 5827 | E12: 539 | F12: 250 | G12: 2623 | H12: 84 | I12: 248 | J12: 212 | K12: 275 | L12: 119 | M12: 261 | N12: 690 | O12: 159 | P12: 178 | Q12: 130 | R12: 107 | S12: 20 | T12: 852 | U12: 3232 | V12: 22381
A13: 7 | B13: 38.19 | C13: 4922 | D13: 5579 | E13: 503 | F13: 235 | G13: 2417 | H13: 89 | I13: 244 | J13: 182 | K13: 221 | L13: 112 | M13: 231 | N13: 664 | O13: 112 | P13: 172 | Q13: 104 | R13: 102 | S13: 21 | T13: 982 | U13: 2805 | V13: 19697
A14: 8 | B14: 38.19 | C14: 6330 | D14: 6027 | E14: 548 | F14: 262 | G14: 2715 | H14: 173 | I14: 273 | J14: 232 | K14: 346 | L14: 129 | M14: 335 | N14: 844 | O14: 179 | P14: 267 | Q14: 130 | R14: 96 | S14: 40 | T14: 910 | U14: 2954 | V14: 22790
A15: 9 | B15: 38.19 | C15: 9629 | D15: 8402 | E15: 703 | F15: 352 | G15: 3684 | H15: 203 | I15: 373 | J15: 294 | K15: 408 | L15: 238 | M15: 423 | N15: 1191 | O15: 226 | P15: 360 | Q15: 168 | R15: 189 | S15: 60 | T15: 922 | U15: 3073 | V15: 30898
A16: 10 | B16: 38.19 | C16: 11481 | D16: 23246 | E16: 910 | F16: 523 | G16: 4255 | H16: 228 | I16: 394 | J16: 313 | K16: 490 | L16: 240 | M16: 449 | N16: 1536 | O16: 222 | P16: 354 | Q16: 201 | R16: 266 | S16: 78 | T16: 1142 | U16: 3968 | V16: 50296
A17: 11 | B17: 38.23 | C17: 14147 | D17: 25138 | E17: 1094 | F17: 582 | G17: 5306 | H17: 343 | I17: 698 | J17: 411 | K17: 560 | L17: 270 | M17: 478 | N17: 1710 | O17: 312 | P17: 464 | Q17: 263 | R17: 321 | S17: 85 | T17: 1047 | U17: 3993 | V17: 57222
A18: 12 | B18: 38.23 | C18: 10307 | D18: 22533 | E18: 860 | F18: 379 | G18: 3744 | H18: 245 | I18: 601 | J18: 316 | K18: 352 | L18: 201 | M18: 368 | N18: 1222 | O18: 257 | P18: 317 | Q18: 168 | R18: 236 | S18: 51 | T18: 1064 | U18: 4119 | V18: 47340
A19: 13 | B19: 38.23 | C19: 13282 | D19: 25380 | E19: 1124 | F19: 560 | G19: 4450 | H19: 295 | I19: 456 | J19: 330 | K19: 541 | L19: 245 | M19: 490 | N19: 1597 | O19: 356 | P19: 371 | Q19: 219 | R19: 309 | S19: 80 | T19: 1160 | U19: 3142 | V19: 54387
A20: 14 | B20: 38.23 | C20: 8686 | D20: 20715 | E20: 834 | F20: 353 | G20: 3392 | H20: 243 | I20: 333 | J20: 269 | K20: 329 | L20: 176 | M20: 356 | N20: 1139 | O20: 223 | P20: 272 | Q20: 137 | R20: 164 | S20: 50 | T20: 1051 | U20: 2477 | V20: 41199
A21: 15 | B21: 38.23 | C21: 6051 | D21: 18886 | E21: 563 | F21: 199 | G21: 2744 | H21: 190 | I21: 289 | J21: 207 | K21: 288 | L21: 129 | M21: 273 | N21: 940 | O21: 145 | P21: 228 | Q21: 102 | R21: 119 | S21: 32 | T21: 1024 | U21: 3381 | V21: 35790
A22: 16 | B22: 38.23 | C22: 7474 | D22: 20690 | E22: 532 | F22: 263 | G22: 3091 | H22: 208 | I22: 316 | J22: 250 | K22: 284 | L22: 165 | M22: 309 | N22: 858 | O22: 200 | P22: 256 | Q22: 125 | R22: 105 | S22: 45 | T22: 914 | U22: 3880 | V22: 39965
A23: 17 | B23: 38.23 | C23: 8338 | D23: 20874 | E23: 614 | F23: 271 | G23: 3269 | H23: 218 | I23: 308 | J23: 248 | K23: 331 | L23: 162 | M23: 329 | N23: 875 | O23: 218 | P23: 297 | Q23: 165 | R23: 157 | S23: 56 | T23: 1057 | U23: 4060 | V23: 41847
A24: 18 | B24: 38.12 | C24: 9023 | D24: 21435 | E24: 598 | F24: 296 | G24: 3272 | H24: 206 | I24: 350 | J24: 249 | K24: 333 | L24: 179 | M24: 341 | N24: 961 | O24: 199 | P24: 309 | Q24: 175 | R24: 157 | S24: 51 | T24: 848 | U24: 3339 | V24: 42321
A25: 19 | B25: 38.12 | C25: 6649 | D25: 20548 | E25: 511 | F25: 211 | G25: 2403 | H25: 182 | I25: 285 | J25: 173 | K25: 237 | L25: 110 | M25: 266 | N25: 767 | O25: 177 | P25: 267 | Q25: 147 | R25: 124 | S25: 40 | T25: 1027 | U25: 3782 | V25: 37906
A26: 20 | B26: 38.12 | C26: 5599 | D26: 20534 | E26: 483 | F26: 212 | G26: 2403 | H26: 155 | I26: 298 | J26: 176 | K26: 253 | L26: 104 | M26: 234 | N26: 673 | O26: 150 | P26: 218 | Q26: 138 | R26: 111 | S26: 30 | T26: 877 | U26: 2848 | V26: 35496
A27: 21 | B27: 38.12 | C27: 6080 | D27: 21412 | E27: 545 | F27: 238 | G27: 2812 | H27: 167 | I27: 307 | J27: 204 | K27: 245 | L27: 141 | M27: 292 | N27: 781 | O27: 155 | P27: 323 | Q27: 141 | R27: 105 | S27: 23 | T27: 772 | U27: 2961 | V27: 37704
A28: 22 | B28: 38.12 | C28: 5931 | D28: 19324 | E28: 472 | F28: 176 | G28: 2248 | H28: 139 | I28: 249 | J28: 168 | K28: 184 | L28: 96 | M28: 223 | N28: 603 | O28: 133 | P28: 197 | Q28: 115 | R28: 95 | S28: 27 | T28: 995 | U28: 3721 | V28: 35096
A29: 23 | B29: 38.12 | C29: 5618 | D29: 19643 | E29: 489 | F29: 188 | G29: 2139 | H29: 122 | I29: 232 | J29: 157 | K29: 164 | L29: 86 | M29: 225 | N29: 601 | O29: 120 | P29: 168 | Q29: 98 | R29: 87 | S29: 17 | T29: 997 | U29: 3336 | V29: 34487
A30: 24 | B30: 38.17 | C30: 5060 | D30: 21026 | E30: 439 | F30: 191 | G30: 2203 | H30: 150 | I30: 226 | J30: 162 | K30: 171 | L30: 70 | M30: 210 | N30: 554 | O30: 125 | P30: 160 | Q30: 107 | R30: 51 | S30: 18 | T30: 964 | U30: 4350 | V30: 36237
A31: 25 | B31: 38.17 | C31: 3908 | D31: 20227 | E31: 223 | F31: 173 | G31: 2211 | H31: 79 | I31: 220 | J31: 152 | K31: 172 | L31: 84 | M31: 197 | N31: 530 | O31: 118 | P31: 154 | Q31: 100 | R31: 59 | S31: 14 | T31: 981 | U31: 3380 | V31: 32982
A32: 26 | B32: 38.17 | C32: 6040 | D32: 19603 | E32: 448 | F32: 209 | G32: 2435 | H32: 117 | I32: 260 | J32: 205 | K32: 319 | L32: 101 | M32: 280 | N32: 814 | O32: 139 | P32: 254 | Q32: 163 | R32: 92 | S32: 20 | T32: 915 | U32: 4118 | V32: 36532
A33: 27 | B33: 38.17 | C33: 5225 | D33: 18236 | E33: 459 | F33: 196 | G33: 2187 | H33: 137 | I33: 230 | J33: 183 | K33: 205 | L33: 83 | M33: 227 | N33: 562 | O33: 127 | P33: 189 | Q33: 106 | R33: 83 | S33: 22 | T33: 1028 | U33: 3239 | V33: 32724
A34: 28 | B34: 38.17 | C34: 5544 | D34: 18161 | E34: 455 | F34: 198 | G34: 2276 | H34: 120 | I34: 206 | J34: 177 | K34: 212 | L34: 101 | M34: 238 | N34: 472 | O34: 117 | P34: 182 | Q34: 104 | R34: 78 | S34: 20 | T34: 932 | U34: 2932 | V34: 32525
A35: 29 | B35: 38.17 | C35: 3604 | D35: 16932 | E35: 330 | F35: 164 | G35: 1826 | H35: 118 | I35: 167 | J35: 138 | K35: 179 | L35: 75 | M35: 186 | N35: 460 | O35: 77 | P35: 133 | Q35: 79 | R35: 51 | S35: 14 | T35: 914 | U35: 3276 | V35: 28723
A36: 30 | B36: 38.15 | C36: 3323 | D36: 16791 | E36: 642 | F36: 150 | G36: 1736 | H36: 101 | I36: 128 | J36: 126 | K36: 124 | L36: 45 | M36: 122 | N36: 380 | O36: 8 | P36: 120 | Q36: 61 | R36: 4 | S36: 14 | T36: 794 | U36: 3395 | V36: 28064
A37: 31 | B37: 38.15 | C37: 4511 | D37: 15328 | E37: 348 | F37: 134 | G37: 1739 | H37: 98 | I37: 180 | J37: 131 | K37: 156 | L37: 43 | M37: 147 | N37: 371 | O37: 20 | P37: 135 | Q37: 68 | R37: 34 | S37: 14 | T37: 980 | U37: 3660 | V37: 28097
A38: Загальний обсяг газу, м3 | C38: =SUM(C7:C37) -> 211442 | D38: 503767 | E38: 18115 | F38: 8172 | G38: 86741 | H38: 5197 | I38: 9096 | J38: 6696 | K38: 8552 | L38: 4032 | M38: 8918 | N38: 25336 | O38: 4960 | P38: 7191 | Q38: 4123 | R38: 3905 | S38: 1068 | T38: 30267 | U38: 107782 | V38: =SUM(V7:V37) -> 1055360
A39: Енергія, МДж | C39: =SUMPRODUCT(B7:B37,C7:C37) -> 8074077.4 | D39: =SUMPRODUCT(B7:B37,D7:D37) -> 19232859.19 | E39: =SUMPRODUCT(B7:B37,E7:E37) -> 691733.15 | F39: =SUMPRODUCT(B7:B37,F7:F37) -> 312066.51 | G39: =SUMPRODUCT(B7:B37,G7:G37) -> 3312207.48 | H39: =SUMPRODUCT(B7:B37,H7:H37) -> 198452.76 | I39: =SUMPRODUCT(B7:B37,I7:I37) -> 347337.31 | J39: =SUMPRODUCT(B7:B37,J7:J37) -> 255691.97 | K39: =SUMPRODUCT(B7:B37,K7:K37) -> 326572.8 | L39: =SUMPRODUCT(B7:B37,L7:L37) -> 153972.08 | M39: =SUMPRODUCT(B7:B37,M7:M37) -> 340534.35 | N39: =SUMPRODUCT(B7:B37,N7:N37) -> 967510.58 | O39: =SUMPRODUCT(B7:B37,O7:O37) -> 189410.28 | P39: =SUMPRODUCT(B7:B37,P7:P37) -> 274577.11 | Q39: =SUMPRODUCT(B7:B37,Q7:Q37) -> 157429.21 | R39: =SUMPRODUCT(B7:B37,R7:R37) -> 149131.06 | S39: =SUMPRODUCT(B7:B37,S7:S37) -> 40786.44 | T39: =SUMPRODUCT(B7:B37,T7:T37) -> 1155617.65 | U39: =SUMPRODUCT(B7:B37,U7:U37) -> 4115089.47 | V39: =SUMPRODUCT(B7:B37,V7:V37) -> 40295056.8
A40: Теплота згоряння (середньозважене значення за місяць), МДж/м³ | C40: =C39/C38 -> 38.18577861 | D40: 38.17808469 | E40: 38.18565553 | F40: 38.18728708 | G40: 38.18502761 | H40: 38.18602271 | I40: 38.1857201 | J40: 38.18577808 | K40: 38.18671656 | L40: 38.18751984 | M40: 38.18505831 | N40: 38.1871874 | O40: 38.18755645 | P40: 38.18343902 | Q40: 38.18317002 | R40: 38.18977209 | S40: 38.18955056 | T40: 38.1807794 | U40: 38.1797468 | V40: =V39/V38 -> 38.18133793
A41: Теплота згоряння (середньозважене значення за місяць), ккал/м³ | C41: =C40*238.8459 -> 9120.516658 | D41: 9118.678998 | E41: 9120.487263 | F41: 9120.876951 | G41: 9120.337286 | H41: 9120.57496 | I41: 9120.502684 | J41: 9120.516532 | K41: 9120.740684 | L41: 9120.932545 | M41: 9120.344618 | N41: 9120.853143 | O41: 9120.941289 | P41: 9119.957858 | Q41: 9119.893609 | R41: 9121.470485 | S41: 9121.417575 | T41: 9119.322618 | U41: 9119.075987 | V41: =V40*238.8459 -> 9119.456022
A42: Теплота згоряння (середньозважене значення за місяць), кВт*год./м³ | C42: =C40/3.6 -> 10.60716072 | D42: 10.60502352 | E42: 10.60712654 | F42: 10.60757974 | G42: 10.60695211 | H42: 10.60722853 | I42: 10.60714447 | J42: 10.60716058 | K42: 10.60742127 | L42: 10.6076444 | M42: 10.60696064 | N42: 10.60755206 | O42: 10.60765457 | P42: 10.60651084 | Q42: 10.60643612 | R42: 10.60827002 | S42: 10.60820849 | T42: 10.60577205 | U42: 10.60548522 | V42: =V40/3.6 -> 10.6059272

Sheet додаток
A2: Додаток до Паспорту фізико-хімічних показників природного газу № 165
A4: Область | B4: ГРС, прямий споживач | C4: Cередньозважене значення вищої теплоти згоряння
C5: МДж/м³ | D5: ккал/м³ | E5: кВт*год./м³
A6: Чернігівська область | B6: ГРС Н.Сіверський | C6: 38.19 | D6: 9121 | E6: 10.61
B7: ГРС Корюківка | C7: 38.18 | D7: 9119 | E7: 10.61
B8: ГРС Наумівка | C8: 38.19 | D8: 9120 | E8: 10.61
B9: ГРС Сядрине | C9: 38.19 | D9: 9121 | E9: 10.61
B10: ГРС Семенівка | C10: 38.19 | D10: 9120 | E10: 10.61
B11: ГРС Костобобрів | C11: 38.19 | D11: 9121 | E11: 10.61
B12: ГРС Олександрівка | C12: 38.19 | D12: 9121 | E12: 10.61
B13: ГРС Хотіївка | C13: 38.19 | D13: 9121 | E13: 10.61
B14: ГРС Жадове | C14: 38.19 | D14: 9121 | E14: 10.61
B15: ГРС Іванівка (Семенівського району) | C15: 38.19 | D15: 9121 | E15: 10.61
B16: ГРС Машеве | C16: 38.19 | D16: 9120 | E16: 10.61
B17: ГРС Радомка | C17: 38.19 | D17: 9121 | E17: 10.61
B18: ГРС Горбове | C18: 38.19 | D18: 9121 | E18: 10.61
B19: ГРС Печенюги | C19: 38.18 | D19: 9120 | E19: 10.61
B20: ГРС Б.Вороб'ївська | C20: 38.18 | D20: 9120 | E20: 10.61
B21: ГРС Забарівка | C21: 38.19 | D21: 9121 | E21: 10.61
B22: ГРС Троїцьке | C22: 38.19 | D22: 9121 | E22: 10.61
A23: Сумська область | B23: ГРС № 1 м. Шостка | C23: 38.18 | D23: 9119 | E23: 10.61
B24: ТОВ "ГАЗОВІ АВТОМОБІЛЬНІ ЗАПРАВКИ", АГНКС м. Шостка | C24: 38.18 | D24: 9119 | E24: 10.61
A25: Середньозважене значення вищої теплоти згоряння по маршруту № 165 | C25: 38.18 | D25: 9119 | E25: 10.61
A29: Начальник управління Чернігівського ЛВУМГ | D29: Шутішин В.О. | F29: 01.06.2017 р.
A30: Підрозділу підприємства, якому підпорядкована лабораторія | D30: прізвище | E30: підпис | F30: дата
A31: Завідувач лабораторією | D31: Лапа І.О. | F31: 01.06.2017 р.
A32: Лабораторія, де здійснювалось вимірювання газу | D32: прізвище | E32: підпис | F32: дата
A33: Начальник служби газовимірювання та метрології | D33: Макаров О.В. | F33: 01.06.2017 р.
A34: Підрозділу, відповідального за облік газу за маршрутом | D34: прізвище | E34: підпис | F34: дата

Sheet variablesList (hidden)
A1: 3 | B1: x:\gaysin | C1: 10, 11, 24, 25, 127, 128, 132, 180, 207, 215 | D1: x:\
B2: x:\Illinci
B3: x:\Talne
